fUSD/lending_fUSD_20240218
["ID","MTS","AMOUNT","RATE_DAILY","PERIOD"]
[314396637,1708278632163,-15.73309677,0.00035318,2]
[314396638,1708278632179,-484.26690323,0.00035318,2]
[314396640,1708278632190,-1415.49414832,0.00035329,2]
[314396641,1708278632230,-3248.01585168,0.00035329,2]
[314396642,1708278632242,-500.0,0.00035339,2]
[314396643,1708278632253,-216.0,0.00035358,2]
[314396645,1708278632265,-199.32,0.00035382,2]
[314396648,1708278632276,-2000.0,0.00035403,2]
[314396649,1708278632288,-182.945018,0.00035406,2]
[314396650,1708278632299,-740.68,0.00035415,2]
[314396651,1708278632310,-157.25,0.00035524,2]
[314396652,1708278632320,-633.4,0.00035526,2]
[314396653,1708278632330,-784.0,0.00035551,2]
[314396654,1708278632340,-500.0,0.00035616,2]
[314396655,1708278632350,-700.52873003,0.00035616,2]
[314396656,1708278632359,-414.62147522,0.00035616,2]
[314396657,1708278632377,-109.67383418,0.00035616,2]
[314396658,1708278632388,-1000.0,0.00035616,2]
[314396659,1708278632400,-500.0,0.00035616,2]
[314396660,1708278632411,-500.0,0.00035616,2]
[314396661,1708278632422,-1000.0,0.00035616,2]
[314396662,1708278632433,-545.34,0.00035616,2]
[314396663,1708278632443,-500.0,0.00035616,2]
[314396664,1708278632456,-500.0,0.00035616,2]
[314396665,1708278632467,-500.0,0.00035616,2]
[314396666,1708278632477,-500.0,0.00035616,2]
[314396667,1708278632488,-250.0,0.00035948,2]
[314396668,1708278632498,-94.98616582,0.00036,37]
[314396669,1708278632523,-205.01383418,0.00036,37]
[314396670,1708278632534,-294.92493207,0.00036,2]
[314396671,1708278632548,-190.13506793,0.00036,2]
[314396672,1708278632558,-160.84203349,0.00036086,2]
[314396673,1708278632569,-210.0,0.0003618,2]
[314396674,1708278632580,-214.0,0.0003618,2]
[314396675,1708278632591,-152.0,0.00036438,4]
[314396676,1708278632602,-4663.51,0.00036636,2]
[314396677,1708278632612,-210.0,0.0003664,2]
[314396678,1708278632624,-214.0,0.0003664,2]
[314396679,1708278632634,-155.0,0.00036673,2]
[314396680,1708278632645,-177.48,0.000368,2]
[314396681,1708278632656,-425.91,0.00036803,2]
[314396682,1708278632667,-275.51236679,0.00036924,2]
[314396683,1708278632681,-358.85125374,0.00036924,2]
[314396684,1708278632694,-270.29095374,0.00036924,2]
[314396685,1708278632709,-1139.34542573,0.00036924,2]
[314396686,1708278632720,-1000.0,0.00036939,2]
[314396687,1708278632739,-1223.96,0.00036957,2]
[314396688,1708278632756,-200.0,0.00036987,3]
[314396689,1708278632769,-500.0,0.00036999,2]
[314396690,1708278632781,-516.84197371,0.00036999,2]
[314396691,1708278632793,-500.0,0.00036999,2]
[314396692,1708278632805,-500.0,0.00036999,2]
[314396693,1708278632817,-1000.0,0.00036999,2]
[314396694,1708278632829,-500.0,0.00036999,2]
[314396695,1708278632841,-500.0,0.00036999,2]
[314396696,1708278632853,-500.0,0.00036999,2]
[314396697,1708278632864,-2708.87870045,0.00037,30]
[314396698,1708278632876,-668.54961562,0.00037,2]
[314396705,1708278637806,-910.035438,0.00037,2]
[314396706,1708278637862,-421.41494638,0.00037,2]
[314396707,1708278637873,-2660.58331564,0.00037,3]
[314396708,1708278637884,-10599.8150197,0.00037,2]
[314396709,1708278637900,-575.58435544,0.00037,2]
[314396710,1708278637914,-1199.60842379,0.00037,2]
[314396711,1708278637924,-300.0,0.00037,38]
[314396712,1708278637935,-210.0,0.0003709,2]
[314396713,1708278637945,-214.0,0.0003709,2]
[314396714,1708278637956,-207.2887,0.00037269,2]
[314396715,1708278637968,-3680.9956,0.00037269,2]
[314396716,1708278637979,-13446.33957375,0.00037269,2]
[314396717,1708278637993,-16758.621,0.00037269,2]
[314396718,1708278638017,-2000.0,0.00037269,2]
[314396719,1708278638030,-1871.43237019,0.00037269,2]
[314396720,1708278638049,-436338.94115606,0.00037269,2]
[314396721,1708278638061,-4633.9465,0.00037279,2]
[314396722,1708278638072,-2500.0,0.00037279,2]
[314396723,1708278638084,-200.0,0.00037286,3]
[314396724,1708278638096,-157.25,0.000373,2]
[314396725,1708278638107,-177.48,0.00037348,2]
[314396726,1708278638117,-1000.0,0.00037356,2]
[314396727,1708278638127,-155.0,0.00037377,4]
[314396728,1708278638138,-500.0,0.00037378,2]
[314396729,1708278638148,-500.0,0.00037378,2]
[314396730,1708278638159,-500.0,0.00037378,2]
[314396731,1708278638169,-500.0,0.00037378,2]
[314396732,1708278638179,-594.59,0.00037378,2]
[314396733,1708278638189,-500.0,0.00037378,2]
[314396734,1708278638474,-500.0,0.00037378,2]
[314396735,1708278638490,-500.0,0.00037378,2]
[314396736,1708278638500,-457.88633092,0.00037378,2]
[314396737,1708278638510,-420.66,0.00037378,2]
[314396738,1708278638519,-500.0,0.00037378,2]
[314396739,1708278638530,-500.0,0.00037378,2]
[314396740,1708278638539,-500.0,0.00037378,2]
[314396741,1708278638549,-500.0,0.00037378,2]
[314396742,1708278638558,-500.0,0.00037378,2]
[314396743,1708278638568,-500.0,0.00037378,2]
[314396744,1708278638577,-500.0,0.00037378,2]
[314396745,1708278638586,-500.0,0.00037378,2]
[314396746,1708278638596,-500.0,0.00037378,2]
[314396747,1708278638605,-541.89,0.00037378,2]
[314396748,1708278638615,-500.0,0.00037378,2]
[314396749,1708278638635,-500.0,0.00037378,2]
[314396750,1708278638646,-500.0,0.00037378,2]
[314396751,1708278638656,-500.0,0.00037378,2]
[314396752,1708278638666,-500.0,0.00037378,2]
[314396753,1708278638676,-500.0,0.00037378,2]
[314396754,1708278638685,-500.0,0.00037378,2]
[314396755,1708278638695,-500.0,0.00037378,2]
[314396756,1708278638705,-500.0,0.00037378,2]
[314396757,1708278638715,-500.0,0.00037378,2]
[314396758,1708278638725,-500.0,0.00037378,2]
[314396759,1708278638735,-637.26,0.00037378,2]
[314396760,1708278638744,-334.18091301,0.00037378,2]
[314396761,1708278638753,-385.87443398,0.00037378,2]
[314396762,1708278638763,-500.0,0.00037378,2]
[314396763,1708278638772,-447.03142737,0.00037378,2]
[314396764,1708278638782,-184.38800781,0.00037378,2]
[314396765,1708278638791,-500.0,0.00037378,2]
[314396766,1708278638800,-500.0,0.00037378,2]
[314396767,1708278638810,-500.0,0.00037378,2]
[314396768,1708278638819,-315.2635305,0.00037378,2]
[314396769,1708278638829,-500.0,0.00037378,2]
[314396770,1708278638839,-500.0,0.00037378,2]
[314396771,1708278638848,-500.0,0.00037378,2]
[314396772,1708278638857,-1000.0,0.00037379,2]
[314396773,1708278638867,-6317.3749,0.00037379,2]
[314396774,1708278638876,-151.0,0.00037391,30]
[314396775,1708278638886,-229.05477039,0.000374,4]
[314396776,1708278638895,-191.22421806,0.00037469,2]
[314396777,1708278638905,-1369.0,0.00037479,2]
[314396778,1708278638914,-1969.691,0.00037479,2]
[314396779,1708278638923,-2835.0,0.00037479,2]
[314396780,1708278638933,-660.667,0.00037479,2]
[314396781,1708278638942,-880.0,0.00037479,2]
[314396782,1708278638952,-455.579,0.00037479,2]
[314396783,1708278638962,-953.0,0.00037479,2]
[314396784,1708278638971,-216.0,0.00037479,2]
[314396785,1708278638981,-1255.0,0.00037479,2]
[314396786,1708278638990,-261.071,0.00037479,2]
[314396787,1708278639001,-1012.214,0.00037479,2]
[314396788,1708278639010,-429.0,0.00037479,2]
[314396789,1708278639019,-858.0,0.00037479,2]
[314396790,1708278639029,-2871.0,0.00037479,2]
[314396791,1708278639038,-1138.0,0.00037479,2]
[314396792,1708278639047,-321.0,0.00037479,2]
[314396793,1708278639057,-150.0,0.00037479,2]
[314396794,1708278639066,-343.0,0.00037479,2]
[314396795,1708278639076,-454.0,0.00037479,2]
[314396796,1708278639085,-150.0,0.00037479,2]
[314396797,1708278639095,-19846.0,0.00037479,2]
[314396798,1708278639107,-8164.0,0.00037479,2]
[314396799,1708278639116,-150.0,0.00037479,2]
[314396800,1708278639126,-5598.0,0.00037479,2]
[314396801,1708278639135,-7417.0,0.00037479,2]
[314396802,1708278639145,-2289.0,0.00037479,2]
[314396803,1708278639154,-150.244,0.00037479,2]
[314396804,1708278639164,-2927.0,0.00037479,2]
[314396805,1708278639173,-4137.899,0.00037479,2]
[314396806,1708278639183,-42574.0,0.00037479,2]
[314396807,1708278639192,-150.0,0.00037479,2]
[314396808,1708278639202,-150.0,0.00037479,2]
[314396809,1708278639212,-150.0,0.00037479,2]
[314396810,1708278639221,-150.0,0.00037479,2]
[314396811,1708278639230,-1037.0,0.00037479,2]
[314396812,1708278639239,-249.537,0.00037479,2]
[314396813,1708278639249,-212.162,0.00037479,2]
[314396814,1708278639258,-500.0,0.0003748,2]
[314396815,1708278639268,-221.03318252,0.00037489,2]
[314396816,1708278639279,-317.97499158,0.00037489,2]
[314396817,1708278639289,-500.0,0.00037489,2]
[314396818,1708278639298,-150.0,0.00037508,7]
[314396819,1708278639307,-375.16,0.00037531,2]
[314396820,1708278639317,-210.0,0.0003755,2]
[314396821,1708278639326,-214.0,0.0003755,2]
[314396822,1708278639339,-1000.0,0.00037574,2]
[314396823,1708278639350,-152.44401212,0.00037574,2]
[314396824,1708278639359,-355.84824712,0.00037574,2]
[314396825,1708278639370,-1202.22186348,0.00037574,2]
[314396826,1708278639379,-170.58222616,0.00037574,8]
[314396827,1708278639389,-530.0944826,0.00037574,2]
[314396828,1708278639399,-1804.76776348,0.000376,10]
[314396829,1708278639410,-355.84824712,0.00037624,2]
[314396830,1708278639420,-150.0,0.00037624,2]
[314396831,1708278639430,-32757.65360855,0.00037632,12]
[314396832,1708278639440,-500.0,0.0003765,2]
[314396833,1708278639450,-500.0,0.0003765,2]
[314396834,1708278639459,-500.09719459,0.0003765,2]
[314396835,1708278639469,-343.73453167,0.0003765,2]
[314396836,1708278639479,-556.06867048,0.0003765,2]
[314396837,1708278639489,-18803.07250904,0.00037651,13]
[314396838,1708278639498,-630.9,0.00037673,2]
[314396839,1708278639508,-500.0,0.00037673,2]
[314396840,1708278639517,-333.44,0.00037673,2]
[314396841,1708278639527,-500.0,0.00037673,2]
[314396842,1708278639537,-500.0,0.00037673,2]
[314396843,1708278639546,-500.0,0.00037673,2]
[314396844,1708278639556,-500.0,0.00037673,2]
[314396845,1708278639566,-500.0,0.00037673,2]
[314396846,1708278639576,-500.0,0.00037673,2]
[314396847,1708278639585,-500.0,0.00037673,2]
[314396848,1708278639594,-500.0,0.00037673,2]
[314396849,1708278639603,-500.0,0.00037673,2]
[314396850,1708278639612,-500.0,0.00037673,2]
[314396851,1708278639622,-771.1,0.00037673,2]
[314396852,1708278639631,-355.84824712,0.00037674,2]
[314396853,1708278639641,-111295.3367225,0.00037674,3]
[314396854,1708278639655,-5977.39990675,0.00037674,3]
[314396855,1708278639667,-225627.15410089,0.00037674,3]
[314396856,1708278639676,-500.0,0.00037674,2]
[314396857,1708278639686,-155.0,0.00037674,2]
[314396858,1708278639695,-2221.6212,0.00037674,2]
[314396859,1708278639704,-100000.0,0.00037674,2]
[314396860,1708278639713,-60329.6007213,0.00037674,2]
[314396861,1708278639738,-1267.65875993,0.00037674,2]
[314396862,1708278639750,-1123.13901484,0.00037674,2]
[314396863,1708278639761,-1160.99228147,0.00037674,2]
[314396864,1708278639782,-2276.74087395,0.00037674,2]
[314396865,1708278639793,-603.45575644,0.00037674,2]
[314396866,1708278641260,-2500.0,0.00037379,2]
[314396867,1708278641270,-94749.63883063,0.00037674,2]
[314396868,1708278641316,-5196.97995139,0.00037674,2]
[314396875,1708278643102,-1965.4047015,0.00037674,2]
[314396885,1708278646068,-500.0,0.00037673,4]
[314396886,1708278646077,-246.87241502,0.00037674,2]
[314396887,1708278646123,-9329.60103601,0.00037674,2]
[314396888,1708278646182,-1503.21919698,0.00037674,2]
[314396909,1708278670213,288545.62687232,0.00023,2]
[314396910,1708278670243,9450.0,0.00023,2]
[314396911,1708278670267,13900.0,0.00023,2]
[314396912,1708278670295,1876747.788775,0.00023,2]
[314396913,1708278670317,1582085.715027,0.00023,2]
[314396914,1708278670343,2000.0,0.00023,2]
[314396915,1708278670365,2000.0,0.00023,2]
[314396916,1708278670388,2000.0,0.00023,2]
[314396917,1708278670412,2000.0,0.00023,2]
[314396918,1708278670436,2000.0,0.00023,2]
[314396919,1708278670459,2000.0,0.00023,2]
[314396920,1708278670483,330217.94803164,0.00023,2]
[314396921,1708278715246,1097.85873629,0.0002,7]
[314396923,1708279238885,87923.0317711,0.000286,120]
[314396924,1708279268480,9679.64093681,0.0002701,120]
[314396925,1708279295865,3000.0,0.000258,120]
[314396926,1708279315472,29928.0,0.00025089,120]
[314396927,1708279623179,3046.18,0.0002,2]
[314396931,1708279764798,1409.38556331,0.00023,2]
[314396937,1708279805723,-208.0,0.000241,2]
[314396938,1708279805745,-500.0,0.00024999,2]
[314396939,1708279805769,-170.02169518,0.00025,2]
[314396940,1708279805792,-150.0,0.00025089,2]
[314396941,1708279805813,-300.0,0.00025089,2]
[314396942,1708279805838,-10580.82942033,0.0002509,2]
[314396951,1708279832029,-155.0,0.00027176,2]
[314396952,1708279832039,-420.0,0.00027177,2]
[314396953,1708279832050,-3524.44333971,0.000272,2]
[314396954,1708279832059,-806.51,0.00028576,2]
[314396955,1708279832068,-208.0,0.00028588,9]
[314396956,1708279832078,-500.0,0.00029203,2]
[314396957,1708279832087,-41556.46922763,0.00029203,2]
[314396958,1708279832096,-23900.0,0.00029204,2]
[314396959,1708279832106,-2821.11,0.00029204,2]
[314396960,1708279832115,-194.84,0.0002929,2]
[314396961,1708279832125,-587.0,0.00029439,2]
[314396962,1708279832134,-150.0,0.00029444,2]
[314396963,1708279832143,-157.25,0.00029722,2]
[314396964,1708279832153,-200.0,0.00029722,2]
[314396965,1708279832162,-250.0,0.00029816,2]
[314396966,1708279832171,-170.58222612,0.000299,4]
[314396967,1708279832180,-1554.55928874,0.000299,2]
[314396968,1708279832189,-296.39160121,0.00029998,2]
[314396969,1708279832198,-11243.77,0.00029998,2]
[314396970,1708279832208,-431.14,0.00029998,2]
[314396971,1708279832217,-20409.44,0.00029998,2]
[314396972,1708279832226,-158.54972027,0.00029999,2]
[314396973,1708279832235,-136747.31738898,0.0003,4]
[314396974,1708279832248,-2462.56452739,0.0003,4]
[314396975,1708279832259,-862.90197581,0.0003,4]
[314396976,1708279832271,-81298.55843105,0.0003,4]
[314396977,1708279832283,-577.89161795,0.0003,4]
[314396978,1708279832298,-323.75358582,0.0003,4]
[314396979,1708279832310,-954.99232549,0.0003,4]
[314396980,1708279832322,-3939.07253238,0.0003,4]
[314396981,1708279832334,-20381.11650543,0.0003,4]
[314396982,1708279832345,-10533.63762,0.0003,4]
[314396983,1708279832358,-12399.04633571,0.0003,4]
[314396984,1708279832374,-258.75,0.0003,4]
[314396985,1708279832387,-8100.79182278,0.0003,4]
[314396986,1708279832410,-895.31631217,0.0003,4]
[314396987,1708279832422,-474.43698901,0.0003,4]
[314396997,1708279833781,209.0,0.000241,2]
[314397002,1708279838040,-24070.49876998,0.0003,4]
[314397003,1708279838097,-6803.47357145,0.0003,4]
[314397004,1708279838151,-1035.9925917,0.0003,4]
[314397005,1708279838163,-4696.84734469,0.0003,4]
[314397006,1708279838175,-6820.4592647,0.0003,4]
[314397007,1708279838186,-1050.55056104,0.0003,4]
[314397008,1708279839007,-12983.35486874,0.0003,4]
[314397009,1708279839016,-826.61972608,0.0003,2]
[314397010,1708279839026,-155.0,0.0003,4]
[314397011,1708279839035,-176.75,0.0003,2]
[314397012,1708279839045,-800.0,0.0003,2]
[314397013,1708279839054,-800.0,0.0003,2]
[314397014,1708279839063,-1157.67427433,0.0003,4]
[314397015,1708279839073,-4212.86,0.0003005,2]
[314397016,1708279839082,-299.51737992,0.000301,2]
[314397017,1708279839091,-330.54,0.00030132,2]
[314397018,1708279839101,-202.29,0.00030219,2]
[314397019,1708279839111,-179.86,0.00030353,2]
[314397020,1708279839121,-500.0,0.00030501,2]
[314397021,1708279839130,-852.83,0.00030582,2]
[314397022,1708279839139,-1188.68,0.00030666,2]
[314397023,1708279839148,-806.51,0.0003084,2]
[314397024,1708279839157,-234.20695576,0.00031,4]
[314397025,1708279839167,-170.02169517,0.0003119,2]
[314397026,1708279839176,-8525.38771117,0.0003143,4]
[314397027,1708279839185,-1209.1770501,0.000318,3]
[314397028,1708279839194,-200.0,0.0003189,3]
[314397029,1708279839203,-250.0,0.00031998,2]
[314397030,1708279839213,-166.02,0.00032032,2]
[314397031,1708279839222,-154.4,0.00032164,2]
[314397032,1708279839231,-168.62,0.00032195,2]
[314397034,1708279839241,-852.83,0.00032226,2]
[314397035,1708279839250,-1339.97,0.00032242,2]
[314397036,1708279839259,-184.38949185,0.00032374,2]
[314397037,1708279839269,-157.25,0.00032694,2]
[314397038,1708279839278,-241.83541002,0.00032847,4]
[314397039,1708279839288,-170.58222612,0.00033005,6]
[314397040,1708279839297,-208.0,0.00033075,16]
[314397041,1708279839306,-155.35,0.00033103,2]
[314397042,1708279839315,-806.51,0.00033103,2]
[314397043,1708279839324,-154.4,0.00033227,2]
[314397044,1708279839334,-155.35,0.0003335,2]
[314397045,1708279839343,-175.37,0.00033385,2]
[314397046,1708279839351,-1000.0,0.00033581,2]
[314397047,1708279839361,-1435.32,0.00033586,2]
[314397048,1708279839370,-155.35,0.00033596,2]
[314397049,1708279839379,-8771.13123773,0.000336,2]
[314397050,1708279839396,-1043.86876227,0.000336,2]
[314397051,1708279839405,-184.38949181,0.00033673,2]
[314397052,1708279839415,-26.22482374,0.00033843,2]
[314397053,1708279839426,-129.12517626,0.00033843,2]
[314397054,1708279839436,-852.83,0.0003387,2]
[314397055,1708279839445,-551.05491709,0.00033968,2]
[314397056,1708279839457,-155.0,0.00034,4]
[314397057,1708279839468,-705.13958715,0.00034,4]
[314397058,1708279839478,-155.35,0.00034089,2]
[314397059,1708279839487,-154.4,0.0003429,2]
[314397060,1708279839497,-155.35,0.00034336,2]
[314397061,1708279839506,-2215.0793549,0.00034521,2]
[314397062,1708279839518,-583.0206451,0.00034521,2]
[314397063,1708279839527,-155.35,0.00034582,2]
[314397064,1708279839537,-155.0,0.00034616,2]
[314397065,1708279839547,-117.66335346,0.00034769,7]
[314397066,1708279839559,-124.17205656,0.00034769,7]
[314397067,1708279839568,-845.51796344,0.00034779,7]
[314397068,1708279839579,-1008.359936,0.00034779,7]
[314397069,1708279839592,-95362.83412816,0.00034779,7]
[314397070,1708279839601,-155.35,0.00034828,2]
[314397071,1708279839610,-185.361874,0.00034881,2]
[314397072,1708279839619,-188.378633,0.00034881,2]
[314397073,1708279839628,-306.983136,0.00034881,2]
[314397074,1708279839638,-1169.30337129,0.000349,2]
[314397075,1708279839648,-184.38949181,0.00034973,2]
[314397076,1708279839657,-405.18,0.00035038,2]
[314397077,1708279839666,-306.983136,0.00035317,2]
[314397078,1708279839676,-154.4,0.00035354,2]
[314397079,1708279839685,-806.51,0.00035367,2]
[314397080,1708279839694,-185.361874,0.00035462,2]
[314397081,1708279839704,-852.83,0.00035513,2]
[314397082,1708279839714,-1000.0,0.000356,2]
[314397083,1708279839723,-267.50638731,0.00035606,2]
[314397084,1708279839732,-500.0,0.00035616,2]
[314397085,1708279839741,-500.0,0.00035616,2]
[314397086,1708279839750,-500.0,0.00035616,2]
[314397087,1708279839760,-558.03382784,0.00035616,2]
[314397088,1708279839770,-500.0,0.00035616,2]
[314397089,1708279839780,-500.0,0.00035616,2]
[314397090,1708279839789,-500.0,0.00035616,2]
[314397091,1708279839799,-500.0,0.00035616,2]
[314397092,1708279839809,-410.55018577,0.00035616,2]
[314397093,1708279839818,-500.0,0.00035616,2]
[314397094,1708279839828,-500.0,0.00035616,2]
[314397095,1708279839837,-500.0,0.00035616,2]
[314397096,1708279839846,-500.0,0.00035616,2]
[314397097,1708279839856,-631.03,0.00035616,2]
[314397098,1708279839866,-500.0,0.00035616,2]
[314397099,1708279839875,-500.0,0.00035616,2]
[314397100,1708279839885,-500.0,0.00035616,2]
[314397101,1708279839895,-500.0,0.00035616,2]
[314397102,1708279839905,-500.0,0.00035616,2]
[314397103,1708279839915,-500.0,0.00035616,2]
[314397104,1708279839924,-500.0,0.00035616,2]
[314397105,1708279839933,-500.0,0.00035616,2]
[314397106,1708279839943,-500.0,0.00035616,2]
[314397107,1708279839953,-500.0,0.00035616,2]
[314397108,1708279839963,-429.32,0.00035616,2]
[314397109,1708279839973,-500.0,0.00035616,2]
[314397110,1708279839982,-500.0,0.00035616,2]
[314397111,1708279839991,-500.0,0.00035616,2]
[314397112,1708279840000,-500.0,0.00035616,2]
[314397113,1708279840009,-500.0,0.00035616,2]
[314397114,1708279840019,-500.0,0.00035616,2]
[314397115,1708279840028,-500.0,0.00035616,2]
[314397116,1708279840038,-500.0,0.00035616,2]
[314397117,1708279840047,-500.0,0.00035616,2]
[314397118,1708279840057,-500.0,0.00035616,2]
[314397119,1708279840066,-500.0,0.00035616,2]
[314397120,1708279840075,-528.71,0.00035616,2]
[314397121,1708279840084,-500.0,0.00035616,2]
[314397122,1708279840094,-500.0,0.00035616,2]
[314397123,1708279840103,-858.82222732,0.00035616,7]
[314397124,1708279840112,-500.0,0.00035616,2]
[314397125,1708279840122,-500.0,0.00035616,2]
[314397126,1708279840131,-500.0,0.00035616,2]
[314397127,1708279840140,-500.0,0.00035616,2]
[314397128,1708279840149,-500.0,0.00035616,2]
[314397129,1708279840159,-500.0,0.00035616,2]
[314397130,1708279840168,-500.0,0.00035616,2]
[314397131,1708279840177,-500.0,0.00035616,2]
[314397132,1708279840187,-500.0,0.00035616,2]
[314397133,1708279840196,-362.04,0.00035616,2]
[314397134,1708279840205,-500.0,0.00035616,2]
[314397135,1708279840215,-500.0,0.00035616,2]
[314397136,1708279840224,-553.24,0.00035616,2]
[314397137,1708279840233,-561.42,0.00035616,2]
[314397138,1708279840243,-157.25,0.00035666,2]
[314397139,1708279840253,-306.983136,0.00035753,2]
[314397140,1708279840262,-2798.1,0.00035798,2]
[314397141,1708279840271,-242.53,0.000358,2]
[314397142,1708279840280,-155.0,0.00035986,2]
[314397143,1708279840290,-1741.63641446,0.00036,2]
[314397144,1708279840299,-5181.105,0.00036035,2]
[314397145,1708279840308,-29647.156,0.00036035,2]
[314397146,1708279840318,-8164.0,0.00036035,2]
[314397147,1708279840327,-2927.0,0.00036035,2]
[314397148,1708279840336,-2289.0,0.00036035,2]
[314397149,1708279840344,-4098.0,0.00036035,2]
[314397150,1708279840354,-185.361874,0.00036043,2]
[314397151,1708279840363,-1169.30337127,0.00036061,2]
[314397152,1708279840373,-177.48,0.000361,2]
[314397153,1708279840382,-170.58222612,0.0003611,7]
[314397154,1708279840391,-214.0,0.0003618,2]
[314397155,1708279840400,-306.983136,0.00036189,2]
[314397156,1708279840409,-19846.0,0.00036244,2]
[314397157,1708279840418,-1037.0,0.00036244,2]
[314397158,1708279840427,-150.0,0.00036244,2]
[314397159,1708279840437,-184.38949181,0.00036272,2]
[314397160,1708279840446,-405.18,0.00036277,2]
[314397161,1708279840458,-2555.39719235,0.00036389,2]
[314397162,1708279840467,-2555.39719232,0.00036389,2]
[314397163,1708279840477,-2555.39719232,0.00036389,2]
[314397164,1708279840486,-2555.39719232,0.00036389,2]
[314397165,1708279840495,-2555.39719232,0.00036389,2]
[314397166,1708279840504,-2555.39719232,0.00036389,2]
[314397167,1708279840514,-154.4,0.00036417,2]
[314397168,1708279840523,-151.0,0.00036457,2]
[314397169,1708279840533,-2555.39719232,0.00036567,2]
[314397170,1708279840545,-306.983136,0.00036625,2]
[314397171,1708279840559,-185.361874,0.00036625,2]
[314397172,1708279840571,-214.0,0.0003664,2]
[314397173,1708279840586,-177.48,0.00036648,2]
[314397174,1708279840597,-200.0,0.00036666,2]
[314397175,1708279840610,-2974.7942055,0.00036798,2]
[314397177,1708279840620,-2974.79420542,0.00036798,2]
[314397178,1708279840630,-2974.79420542,0.00036798,2]
[314397179,1708279840641,-2974.79420542,0.00036798,2]
[314397180,1708279840653,-2974.79420542,0.00036798,2]
[314397181,1708279840666,-2974.79420542,0.00036798,2]
[314397182,1708279840678,-2974.79420542,0.00036798,2]
[314397183,1708279840689,-16346.999999,0.000368,2]
[314397184,1708279840701,-3470.31782469,0.00036865,2]
[314397185,1708279840713,-4185.24821548,0.000369,2]
[314397186,1708279840725,-4185.24821546,0.000369,2]
[314397187,1708279840737,-4185.24821546,0.000369,2]
[314397188,1708279840748,-4185.24821546,0.000369,2]
[314397189,1708279840759,-4185.24821546,0.000369,2]
[314397190,1708279840770,-4185.24821546,0.000369,2]
[314397191,1708279840781,-4185.24821546,0.000369,2]
[314397192,1708279840791,-4185.24821546,0.000369,2]
[314397193,1708279840801,-4185.24821546,0.000369,2]
[314397194,1708279840813,-4185.24821546,0.000369,2]
[314397195,1708279840824,-4185.24821546,0.000369,2]
[314397196,1708279840835,-4185.24821546,0.000369,2]
[314397197,1708279840849,-4185.24821546,0.000369,2]
[314397198,1708279840868,-4185.24821546,0.000369,2]
[314397199,1708279840881,-4185.24821546,0.000369,2]
[314397200,1708279840892,-4185.24821546,0.000369,2]
[314397201,1708279840904,-4185.24821546,0.000369,2]
[314397202,1708279840916,-4185.24821546,0.00036917,2]
[314397203,1708279840927,-200.0,0.00036987,3]
[314397204,1708279840939,-166.65,0.00036999,2]
[314397205,1708279840950,-500.0,0.00036999,2]
[314397206,1708279840962,-500.0,0.00036999,2]
[314397207,1708279840972,-500.0,0.00036999,2]
[314397208,1708279840983,-500.0,0.00036999,2]
[314397209,1708279840996,-500.0,0.00036999,2]
[314397210,1708279841007,-358.62,0.00036999,2]
[314397211,1708279841018,-384.08,0.00036999,2]
[314397212,1708279841029,-500.0,0.00036999,2]
[314397213,1708279841040,-100000.0,0.00037,7]